[Event "2e tournoi de GMI du Barreau de Paris"]
[Site "Paris, France"]
[Date "2021.06.21"]
[Round "5.4"]
[White "Dardha, Daniel"]
[Black "Vlachos, Anatole"]
[Result "1-0"]
[TimeControl "90+30"]
[WhiteElo "2503"]
[BlackElo "2439"]

1. d4 {[%clk 01:30:55]} {[%emt 00:00:03]} d5 {[%clk 01:21:57]} {[%emt
00:09:04]} 2. c4 {[%clk 01:29:57]} {[%emt 00:01:28]} e6 {[%clk 01:22:14]}
{[%emt 00:00:13]} 3. Nc3 {[%clk 01:30:01]} {[%emt 00:00:26]} Nf6 {[%clk
01:22:41]} {[%emt 00:00:03]} 4. Nf3 {[%clk 01:27:48]} {[%emt 00:02:43]} Be7
{[%clk 01:23:07]} {[%emt 00:00:04]} 5. Bf4 {[%clk 01:26:32]} {[%emt 00:01:46]}
O-O {[%clk 01:23:32]} {[%emt 00:00:05]} 6. e3 {[%clk 01:26:51]} {[%emt
00:00:10]} c5 {[%clk 01:23:42]} {[%emt 00:00:20]} 7. dxc5 {[%clk 01:26:15]}
{[%emt 00:01:07]} Bxc5 {[%clk 01:24:08]} {[%emt 00:00:03]} 8. Qc2 {[%clk
01:21:13]} {[%emt 00:05:32]} Nc6 {[%clk 01:24:35]} {[%emt 00:00:04]} 9. a3
{[%clk 01:19:36]} {[%emt 00:02:07]} Qa5 {[%clk 01:25:02]} {[%emt 00:00:03]} 10.
O-O-O {[%clk 01:17:22]} {[%emt 00:02:44]} Be7 {[%clk 01:25:30]} {[%emt
00:00:02]} 11. Kb1 {[%clk 01:11:48]} {[%emt 00:06:04]} a6 {[%clk 01:25:56]}
{[%emt 00:00:05]} 12. Qa4 {[%clk 00:49:29]} {[%emt 00:22:48]} Qxa4 {[%clk
01:18:15]} {[%emt 00:08:11]} 13. Nxa4 {[%clk 00:49:57]} {[%emt 00:00:03]} Ne4
{[%clk 01:17:34]} {[%emt 00:01:10]} 14. Bg3 {[%clk 00:46:59]} {[%emt 00:03:27]}
Bd8 {[%clk 01:13:27]} {[%emt 00:04:38]} 15. Bd3 {[%clk 00:42:25]} {[%emt
00:05:04]} h6 {[%clk 01:05:21]} {[%emt 00:08:37]} 16. Bxe4 {[%clk 00:37:30]}
{[%emt 00:05:25]} dxe4 {[%clk 01:05:48]} {[%emt 00:00:03]} 17. Ne5 {[%clk
00:34:54]} {[%emt 00:03:05]} Nxe5 {[%clk 00:39:10]} {[%emt 00:27:09]} 18. Bxe5
{[%clk 00:35:21]} {[%emt 00:00:03]} f6 {[%clk 00:33:51]} {[%emt 00:05:49]} 19.
Bd6 {[%clk 00:21:34]} {[%emt 00:14:17]} Rf7 {[%clk 00:34:20]} {[%emt 00:00:02]}
20. Nc5 {[%clk 00:20:24]} {[%emt 00:01:40]} f5 {[%clk 00:19:07]} {[%emt
00:15:42]} 21. Be5 {[%clk 00:19:21]} {[%emt 00:01:33]} Bc7 {[%clk 00:18:26]}
{[%emt 00:01:11]} 22. Bxc7 {[%clk 00:14:44]} {[%emt 00:05:08]} Rxc7 {[%clk
00:18:54]} {[%emt 00:00:02]} 23. b4 {[%clk 00:13:03]} {[%emt 00:02:11]} b6
{[%clk 00:18:07]} {[%emt 00:01:17]} 24. Na4 {[%clk 00:12:57]} {[%emt 00:00:36]}
Rb8 {[%clk 00:18:20]} {[%emt 00:00:16]} 25. Rd6 {[%clk 00:11:51]} {[%emt
00:01:36]} b5 {[%clk 00:17:22]} {[%emt 00:01:28]} 26. Nc5 {[%clk 00:10:23]}
{[%emt 00:01:58]} Kf7 {[%clk 00:15:43]} {[%emt 00:02:09]} 27. Rhd1 {[%clk
00:08:22]} {[%emt 00:02:30]} a5 {[%clk 00:11:53]} {[%emt 00:04:21]} 28. Rd8
{[%clk 00:06:46]} {[%emt 00:02:06]} Rb6 {[%clk 00:10:56]} {[%emt 00:01:26]} 29.
R1d6 {[%clk 00:05:55]} {[%emt 00:01:22]} Rxd6 {[%clk 00:10:55]} {[%emt
00:00:32]} 30. Rxd6 {[%clk 00:06:23]} {[%emt 00:00:02]} bxc4 {[%clk 00:10:22]}
{[%emt 00:01:04]} 31. Kb2 {[%clk 00:06:01]} {[%emt 00:00:51]} axb4 {[%clk
00:09:22]} {[%emt 00:01:30]} 32. axb4 {[%clk 00:06:29]} {[%emt 00:00:02]} Ke7
{[%clk 00:09:44]} {[%emt 00:00:08]} 33. Rb6 {[%clk 00:05:34]} {[%emt 00:01:26]}
Ra7 {[%clk 00:08:45]} {[%emt 00:01:28]} 34. Kc3 {[%clk 00:05:11]} {[%emt
00:00:53]} Ra2 {[%clk 00:08:43]} {[%emt 00:00:31]} 35. Rc6 {[%clk 00:05:15]}
{[%emt 00:00:26]} Kd8 {[%clk 00:08:36]} {[%emt 00:00:38]} 36. b5 {[%clk
00:05:12]} {[%emt 00:00:32]} Rxf2 {[%clk 00:07:10]} {[%emt 00:01:56]} 37. b6
{[%clk 00:05:30]} {[%emt 00:00:13]} Rf1 {[%clk 00:03:35]} {[%emt 00:04:05]} 38.
b7 {[%clk 00:04:08]} {[%emt 00:01:52]} Bxb7 {[%clk 00:04:00]} {[%emt 00:00:05]}
39. Nxb7+ {[%clk 00:04:33]} {[%emt 00:00:05]} Kd7 {[%clk 00:04:17]} {[%emt
00:00:13]} 40. Ra6 {[%clk 00:04:00]} {[%emt 00:01:03]} Rc1+ {[%clk 00:03:39]}
{[%emt 00:01:08]} 41. Kd4 {[%clk 00:03:27]} {[%emt 00:01:03]} c3 {[%clk
00:04:08]} 42. Nc5+ {[%clk 00:03:47]} {[%emt 00:00:10]} Ke7 {[%clk 00:04:31]}
{[%emt 00:00:08]} 43. Nxe6 {[%clk 00:03:10]} {[%emt 00:01:07]} c2 {[%clk
00:03:14]} {[%emt 00:01:48]} 44. Kc3 {[%clk 00:03:39]} {[%emt 00:00:01]} Re1
{[%clk 00:03:35]} {[%emt 00:00:08]} 45. Kxc2 {[%clk 00:04:03]} {[%emt
00:00:07]} Rxe3 {[%clk 00:04:03]} {[%emt 00:00:02]} 46. Nxg7 {[%clk 00:03:28]}
{[%emt 00:01:05]} Re2+ {[%clk 00:04:28]} {[%emt 00:00:05]} 47. Kc3 {[%clk
00:03:26]} {[%emt 00:00:31]} f4 {[%clk 00:04:51]} {[%emt 00:00:07]} 48. Nf5+
{[%clk 00:03:13]} {[%emt 00:00:43]} Kf8 {[%clk 00:03:37]} {[%emt 00:01:42]} 49.
Rf6+ {[%clk 00:02:50]} {[%emt 00:00:55]} Ke8 {[%clk 00:03:07]} {[%emt
00:00:56]} 50. Rxh6 {[%clk 00:02:30]} {[%emt 00:00:55]} f3 {[%clk 00:02:01]}
{[%emt 00:01:36]} 51. gxf3 {[%clk 00:02:30]} {[%emt 00:00:30]} exf3 {[%clk
00:02:29]} {[%emt 00:00:01]} 52. Kd3 {[%clk 00:02:25]} {[%emt 00:00:34]} Re1
{[%clk 00:02:30]} {[%emt 00:00:30]} 53. Ng3 {[%clk 00:02:40]} {[%emt 00:00:15]}
Ke7 {[%clk 00:02:28]} {[%emt 00:00:31]} 54. Rh4 {[%clk 00:02:29]} {[%emt
00:00:41]} 1-0

[Event "2e tournoi de GMI du Barreau de Paris"]
[Site "Paris, France"]
[Date "2021.06.21"]
[Round "5.3"]
[White "Bellahcene, Bilel"]
[Black "David, Alberto"]
[Result "1-0"]
[TimeControl "90+30"]
[WhiteElo "2499"]
[BlackElo "2527"]

1. e4 {[%clk 01:29:00]} {[%emt 00:01:58]} c5 {[%clk 01:30:51]} {[%emt
00:00:09]} 2. Nf3 {[%clk 01:29:19]} {[%emt 00:00:09]} d6 {[%clk 01:31:17]}
{[%emt 00:00:05]} 3. d4 {[%clk 01:29:36]} {[%emt 00:00:13]} cxd4 {[%clk
01:31:42]} {[%emt 00:00:06]} 4. Nxd4 {[%clk 01:30:04]} {[%emt 00:00:02]} Nf6
{[%clk 01:32:05]} {[%emt 00:00:06]} 5. Nc3 {[%clk 01:30:32]} {[%emt 00:00:02]}
a6 {[%clk 01:32:31]} {[%emt 00:00:05]} 6. Bg5 {[%clk 01:26:56]} {[%emt
00:04:05]} e6 {[%clk 01:32:51]} {[%emt 00:00:09]} 7. Qf3 {[%clk 01:27:15]}
{[%emt 00:00:11]} Nbd7 {[%clk 01:32:10]} {[%emt 00:01:11]} 8. O-O-O {[%clk
01:26:55]} {[%emt 00:00:51]} Qc7 {[%clk 01:23:56]} {[%emt 00:08:44]} 9. Qg3
{[%clk 01:25:32]} {[%emt 00:01:53]} Be7 {[%clk 01:23:55]} {[%emt 00:00:31]} 10.
Bd3 {[%clk 01:22:55]} {[%emt 00:03:07]} h6 {[%clk 00:19:09]} {[%emt 01:05:16]}
11. Be3 {[%clk 01:22:39]} {[%emt 00:00:45]} Ne5 {[%clk 00:16:28]} {[%emt
00:03:11]} 12. f4 {[%clk 01:17:01]} {[%emt 00:06:09]} Nxd3+ {[%clk 00:16:28]}
{[%emt 00:00:30]} 13. cxd3 {[%clk 01:17:26]} {[%emt 00:00:05]} b5 {[%clk
00:04:13]} {[%emt 00:12:45]} 14. Kb1 {[%clk 01:17:11]} {[%emt 00:00:45]} b4
{[%clk 00:04:39]} {[%emt 00:00:04]} 15. Nce2 {[%clk 01:17:15]} {[%emt
00:00:26]} Qb7 {[%clk 00:02:21]} {[%emt 00:02:48]} 16. Ka1 {[%clk 01:16:04]}
{[%emt 00:01:42]} g6 {[%clk 00:02:05]} {[%emt 00:00:46]} 17. h3 {[%clk
01:09:22]} {[%emt 00:07:11]} Bd7 {[%clk 00:02:00]} {[%emt 00:00:36]} 18. Qf2
{[%clk 01:09:25]} {[%emt 00:00:27]} h5 {[%clk 00:01:48]} {[%emt 00:00:41]} 19.
Nf3 {[%clk 01:08:03]} {[%emt 00:01:52]} b3 {[%clk 00:01:05]} {[%emt 00:01:14]}
20. a3 {[%clk 01:07:59]} {[%emt 00:00:34]} Rc8 {[%clk 00:00:38]} {[%emt
00:00:57]} 21. Bd4 {[%clk 01:07:58]} {[%emt 00:00:31]} Rc2 {[%clk 00:00:56]}
{[%emt 00:00:11]} 22. Ne1 {[%clk 01:02:12]} {[%emt 00:06:17]} Rc7 {[%clk
00:00:45]} {[%emt 00:00:41]} 23. Nc3 {[%clk 01:02:35]} {[%emt 00:00:07]} h4
{[%clk 00:00:55]} {[%emt 00:00:20]} 24. Nf3 {[%clk 01:02:02]} {[%emt 00:01:03]}
Rh5 {[%clk 00:01:05]} {[%emt 00:00:20]} 25. Rhe1 {[%clk 01:00:30]} {[%emt
00:02:02]} Ra5 {[%clk 00:00:59]} {[%emt 00:00:36]} 26. Kb1 {[%clk 01:00:33]}
{[%emt 00:00:27]} d5 {[%clk 00:00:33]} {[%emt 00:00:56]} 27. Qxh4 {[%clk
00:55:53]} {[%emt 00:05:10]} Nh5 {[%clk 00:00:41]} {[%emt 00:00:22]} 28. Qf2
{[%clk 00:56:15]} {[%emt 00:00:07]} dxe4 {[%clk 00:00:33]} {[%emt 00:00:39]} 29.
Ne5 {[%clk 00:56:36]} {[%emt 00:00:09]} exd3 {[%clk 00:00:44]} {[%emt
00:00:18]} 30. Rxd3 {[%clk 00:54:55]} {[%emt 00:02:11]} Nf6 {[%clk 00:01:08]}
{[%emt 00:00:06]} 31. f5 {[%clk 00:50:15]} {[%emt 00:05:10]} gxf5 {[%clk
00:01:34]} {[%emt 00:00:05]} 32. g4 {[%clk 00:50:05]} {[%emt 00:00:40]} Bb5
{[%clk 00:00:35]} {[%emt 00:01:29]} 33. Rd2 {[%clk 00:49:33]} {[%emt 00:01:03]}
Bc6 {[%clk 00:00:33]} {[%emt 00:00:32]} 34. Rde2 {[%clk 00:44:48]} {[%emt
00:05:15]} Be4+ {[%clk 00:00:32]} {[%emt 00:00:31]} 35. Nxe4 {[%clk 00:45:06]}
{[%emt 00:00:12]} Nxe4 {[%clk 00:00:31]} {[%emt 00:00:31]} 36. Rxe4 {[%clk
00:45:29]} {[%emt 00:00:06]} Bxa3 {[%clk 00:00:46]} {[%emt 00:00:16]} 37. gxf5
{[%clk 00:44:25]} {[%emt 00:01:34]} Bb4 {[%clk 00:01:05]} {[%emt 00:00:11]} 38.
Qg2 {[%clk 00:35:41]} {[%emt 00:09:14]} Qb5 {[%clk 00:00:56]} {[%emt 00:00:39]}
39. Qg8+ {[%clk 00:34:50]} {[%emt 00:01:21]} Bf8 {[%clk 00:01:16]} {[%emt
00:00:10]} 40. Bc3 {[%clk 00:35:14]} {[%emt 00:00:07]} Ra4 {[%clk 00:00:31]}
{[%emt 00:01:15]} 41. fxe6 {[%clk 00:35:01]} {[%emt 00:00:42]} 1-0

[Event "2e tournoi de GMI du Barreau de Paris"]
[Site "Paris, France"]
[Date "2021.06.21"]
[Round "5.5"]
[White "Kevlishvili, Robby"]
[Black "Feller, Sebastien"]
[Result "0-1"]
[TimeControl "90+30"]
[WhiteElo "2499"]
[BlackElo "2568"]

1. e4 {[%clk 01:30:56]} {[%emt 00:00:03]} e5 {[%clk 01:30:55]} {[%emt
00:00:05]} 2. Nf3 {[%clk 01:31:22]} {[%emt 00:00:04]} Nc6 {[%clk 01:31:18]}
{[%emt 00:00:04]} 3. Bb5 {[%clk 01:31:47]} {[%emt 00:00:08]} a6 {[%clk
01:31:45]} {[%emt 00:00:03]} 4. Ba4 {[%clk 01:32:12]} {[%emt 00:00:05]} Nf6
{[%clk 01:32:09]} {[%emt 00:00:06]} 5. O-O {[%clk 01:32:33]} {[%emt 00:00:09]}
Bc5 {[%clk 01:32:37]} {[%emt 00:00:02]} 6. c3 {[%clk 01:31:29]} {[%emt
00:01:33]} O-O {[%clk 01:31:05]} {[%emt 00:02:02]} 7. d4 {[%clk 01:31:14]}
{[%emt 00:00:46]} Ba7 {[%clk 01:31:29]} {[%emt 00:00:07]} 8. Bg5 {[%clk
01:26:10]} {[%emt 00:05:34]} h6 {[%clk 01:27:43]} {[%emt 00:04:16]} 9. Bh4
{[%clk 01:24:53]} {[%emt 00:01:46]} exd4 {[%clk 01:25:55]} {[%emt 00:02:18]} 10.
cxd4 {[%clk 01:08:15]} {[%emt 00:17:08]} g5 {[%clk 01:18:10]} {[%emt 00:08:14]}
11. Nxg5 {[%clk 00:48:00]} {[%emt 00:20:45]} hxg5 {[%clk 01:09:12]} {[%emt
00:09:28]} 12. Bxg5 {[%clk 00:48:20]} {[%emt 00:00:10]} Bxd4 {[%clk 00:53:36]}
{[%emt 00:16:06]} 13. Nc3 {[%clk 00:48:03]} {[%emt 00:00:47]} b5 {[%clk
00:43:09]} {[%emt 00:10:57]} 14. Bc2 {[%clk 00:45:53]} {[%emt 00:02:40]} Qe8
{[%clk 00:25:31]} {[%emt 00:18:08]} 15. Nd5 {[%clk 00:44:25]} {[%emt 00:01:58]}
Nh7 {[%clk 00:25:57]} {[%emt 00:00:04]} 16. Bh6 {[%clk 00:38:07]} {[%emt
00:06:48]} Qe5 {[%clk 00:13:46]} {[%emt 00:12:41]} 17. Bxf8 {[%clk 00:38:20]}
{[%emt 00:00:17]} Kxf8 {[%clk 00:08:18]} {[%emt 00:05:58]} 18. Kh1 {[%clk
00:38:33]} {[%emt 00:00:17]} Nf6 {[%clk 00:02:32]} {[%emt 00:06:17]} 19. f4
{[%clk 00:28:40]} {[%emt 00:10:23]} Qd6 {[%clk 00:03:00]} {[%emt 00:00:02]} 20.
Nxf6 {[%clk 00:28:47]} {[%emt 00:00:23]} Bxf6 {[%clk 00:02:13]} {[%emt
00:01:17]} 21. Qh5 {[%clk 00:28:42]} {[%emt 00:00:35]} Bxb2 {[%clk 00:00:38]}
{[%emt 00:02:05]} 22. e5 {[%clk 00:28:08]} {[%emt 00:01:04]} Qe6 {[%clk
00:00:33]} {[%emt 00:00:34]} 23. Rab1 {[%clk 00:28:14]} {[%emt 00:00:25]} Bc3
{[%clk 00:00:43]} {[%emt 00:00:20]} 24. Qh8+ {[%clk 00:26:19]} {[%emt
00:02:24]} Ke7 {[%clk 00:01:12]} 25. f5 {[%clk 00:24:16]} {[%emt 00:02:35]}
Qxe5 {[%clk 00:01:36]} {[%emt 00:00:06]} 26. f6+ {[%clk 00:24:33]} {[%emt
00:00:13]} Ke6 {[%clk 00:00:40]} {[%emt 00:01:26]} 27. Qe8+ {[%clk 00:24:31]}
{[%emt 00:00:32]} Kd6 {[%clk 00:01:09]} {[%emt 00:00:01]} 28. Qf8+ {[%clk
00:24:54]} {[%emt 00:00:07]} Ke6 {[%clk 00:01:33]} {[%emt 00:00:06]} 29. Bf5+
{[%clk 00:24:36]} {[%emt 00:00:48]} Kd5 {[%clk 00:01:27]} {[%emt 00:00:35]} 30.
Rbd1+ {[%clk 00:23:24]} {[%emt 00:01:42]} Nd4 {[%clk 00:01:05]} {[%emt
00:00:52]} 31. Qxf7+ {[%clk 00:20:15]} {[%emt 00:03:39]} Kc6 {[%clk 00:01:15]}
{[%emt 00:00:20]} 32. Qg6 {[%clk 00:15:39]} {[%emt 00:05:06]} d6 {[%clk
00:00:58]} {[%emt 00:00:48]} 33. Be4+ {[%clk 00:15:59]} {[%emt 00:00:10]} d5
{[%clk 00:01:26]} {[%emt 00:00:01]} 34. f7+ {[%clk 00:11:46]} {[%emt 00:04:43]}
Be6 {[%clk 00:01:55]} {[%emt 00:00:01]} 35. Bxd5+ {[%clk 00:11:18]} {[%emt
00:00:58]} Qxd5 {[%clk 00:02:00]} {[%emt 00:00:25]} 36. f8=Q {[%clk 00:11:43]}
{[%emt 00:00:05]} Rxf8 {[%clk 00:02:27]} {[%emt 00:00:03]} 37. Rxf8 {[%clk
00:12:08]} {[%emt 00:00:04]} Kb6 {[%clk 00:01:04]} {[%emt 00:01:54]} 38. Qg3
{[%clk 00:10:48]} {[%emt 00:01:49]} Qc6 {[%clk 00:00:46]} {[%emt 00:00:47]} 39.
Rc1 {[%clk 00:10:17]} {[%emt 00:01:02]} b4 {[%clk 00:00:38]} {[%emt 00:00:39]}
40. Rb8+ {[%clk 00:10:42]} {[%emt 00:00:05]} Ka5 {[%clk 00:00:48]} {[%emt
00:00:20]} 41. a3 {[%clk 00:10:13]} {[%emt 00:00:59]} Nb5 {[%clk 00:00:55]}
{[%emt 00:00:22]} 42. axb4+ {[%clk 00:10:16]} {[%emt 00:00:27]} Kxb4 {[%clk
00:01:24]} {[%emt 00:00:02]} 43. Rb1+ {[%clk 00:10:06]} {[%emt 00:00:40]} Bb3
{[%clk 00:01:06]} {[%emt 00:00:47]} 44. Qg8 {[%clk 00:08:23]} {[%emt 00:02:13]}
Qc4 {[%clk 00:01:27]} {[%emt 00:00:09]} 45. Qf8+ {[%clk 00:08:06]} {[%emt
00:00:47]} c5 {[%clk 00:01:54]} {[%emt 00:00:03]} 46. Qd8 {[%clk 00:05:49]}
{[%emt 00:02:47]} Bd4 {[%clk 00:00:45]} {[%emt 00:01:39]} 47. Qg5 {[%clk
00:05:35]} {[%emt 00:00:43]} Qc2 {[%clk 00:00:49]} {[%emt 00:00:25]} 48. Rc1
{[%clk 00:05:54]} {[%emt 00:00:12]} Qb2 {[%clk 00:01:12]} {[%emt 00:00:07]} 49.
Rf8 {[%clk 00:05:20]} {[%emt 00:01:05]} Qe2 {[%clk 00:00:40]} {[%emt 00:01:02]}
50. Rf4 {[%clk 00:05:00]} {[%emt 00:00:49]} c4 {[%clk 00:00:42]} {[%emt
00:00:28]} 51. Rff1 {[%clk 00:04:56]} {[%emt 00:00:34]} c3 {[%clk 00:00:51]}
{[%emt 00:00:22]} 52. Rce1 {[%clk 00:05:08]} {[%emt 00:00:18]} Qc4 {[%clk
00:00:53]} {[%emt 00:00:27]} 53. Qe7+ {[%clk 00:05:23]} {[%emt 00:00:15]} Qc5
{[%clk 00:01:09]} {[%emt 00:00:13]} 54. Qb7 {[%clk 00:05:03]} {[%emt 00:00:51]}
a5 {[%clk 00:01:28]} {[%emt 00:00:12]} 55. Qd7 {[%clk 00:04:09]} {[%emt
00:01:24]} c2 {[%clk 00:01:25]} {[%emt 00:00:32]} 56. Rc1 {[%clk 00:04:04]}
{[%emt 00:00:35]} Be3 {[%clk 00:01:02]} {[%emt 00:00:53]} 57. Rce1 {[%clk
00:02:54]} {[%emt 00:01:40]} c1=Q {[%clk 00:00:59]} {[%emt 00:00:33]} 58. Rxc1
{[%clk 00:03:16]} {[%emt 00:00:09]} Bxc1 {[%clk 00:01:26]} {[%emt 00:00:02]} 59.
Rf5 {[%clk 00:03:37]} {[%emt 00:00:09]} Qc4 {[%clk 00:01:17]} {[%emt 00:00:39]}
60. Qe7+ {[%clk 00:03:35]} {[%emt 00:00:33]} Ka4 {[%clk 00:01:35]} {[%emt
00:00:11]} 61. Qe1 {[%clk 00:03:57]} {[%emt 00:00:09]} Bb2 {[%clk 00:01:34]}
{[%emt 00:00:31]} 62. Rf1 {[%clk 00:03:23]} {[%emt 00:01:05]} Bc3 {[%clk
00:01:46]} {[%emt 00:00:17]} 63. Qc1 {[%clk 00:03:44]} {[%emt 00:00:09]} Bd4
{[%clk 00:02:02]} {[%emt 00:00:14]} 64. Qe1 {[%clk 00:04:05]} {[%emt 00:00:10]}
Qc3 {[%clk 00:02:24]} {[%emt 00:00:08]} 65. Qe7 {[%clk 00:04:21]} {[%emt
00:00:14]} Bc4 {[%clk 00:02:35]} {[%emt 00:00:19]} 66. Rb1 {[%clk 00:04:42]}
{[%emt 00:00:09]} Qc2 {[%clk 00:02:38]} {[%emt 00:00:28]} 67. Qe1 {[%clk
00:04:47]} {[%emt 00:00:25]} Bd5 {[%clk 00:02:35]} {[%emt 00:00:33]} 0-1

[Event "2e tournoi de GMI du Barreau de Paris"]
[Site "Paris, France"]
[Date "2021.06.21"]
[Round "5.2"]
[White "Milliet, Sophie"]
[Black "Travadon, Loic"]
[Result "1-0"]
[TimeControl "90+30"]
[WhiteElo "2407"]
[BlackElo "2415"]

1. e4 {[%clk 01:30:56]} {[%emt 00:00:03]} c5 {[%clk 01:29:39]} {[%emt
00:01:21]} 2. Nf3 {[%clk 01:31:21]} {[%emt 00:00:05]} Nc6 {[%clk 01:29:53]}
{[%emt 00:00:17]} 3. d4 {[%clk 01:31:38]} {[%emt 00:00:13]} cxd4 {[%clk
01:30:15]} {[%emt 00:00:08]} 4. Nxd4 {[%clk 01:32:05]} {[%emt 00:00:03]} g6
{[%clk 01:30:29]} {[%emt 00:00:15]} 5. c4 {[%clk 01:32:17]} {[%emt 00:00:19]}
Bg7 {[%clk 01:30:49]} {[%emt 00:00:08]} 6. Be3 {[%clk 01:32:43]} {[%emt
00:00:05]} Nf6 {[%clk 01:30:45]} {[%emt 00:00:34]} 7. Nc3 {[%clk 01:33:09]}
{[%emt 00:00:04]} d6 {[%clk 01:30:55]} {[%emt 00:00:20]} 8. Be2 {[%clk
01:33:04]} {[%emt 00:00:35]} O-O {[%clk 01:31:15]} {[%emt 00:00:09]} 9. O-O
{[%clk 01:33:09]} {[%emt 00:00:26]} Bd7 {[%clk 01:30:45]} {[%emt 00:01:00]} 10.
h3 {[%clk 01:25:25]} {[%emt 00:08:13]} a6 {[%clk 01:29:33]} {[%emt 00:01:42]}
11. Nc2 {[%clk 01:16:21]} {[%emt 00:09:34]} Rc8 {[%clk 01:29:29]} {[%emt
00:00:33]} 12. Rc1 {[%clk 01:06:19]} {[%emt 00:10:33]} Ne5 {[%clk 01:25:53]}
{[%emt 00:04:05]} 13. Na3 {[%clk 01:02:41]} {[%emt 00:04:08]} b5 {[%clk
01:24:59]} {[%emt 00:01:24]} 14. cxb5 {[%clk 01:01:41]} {[%emt 00:01:31]} axb5
{[%clk 01:25:04]} {[%emt 00:00:24]} 15. Naxb5 {[%clk 01:00:37]} {[%emt
00:01:34]} Nc4 {[%clk 01:24:59]} {[%emt 00:00:35]} 16. Bxc4 {[%clk 01:00:31]}
{[%emt 00:00:37]} Rxc4 {[%clk 01:25:26]} {[%emt 00:00:03]} 17. b3 {[%clk
00:55:41]} {[%emt 00:05:20]} Rb4 {[%clk 01:24:09]} {[%emt 00:01:47]} 18. Nd4
{[%clk 00:54:42]} {[%emt 00:01:30]} Qa5 {[%clk 01:21:24]} {[%emt 00:03:15]} 19.
Qd2 {[%clk 00:51:26]} {[%emt 00:03:46]} Ra8 {[%clk 01:14:56]} {[%emt 00:06:57]}
20. Rfd1 {[%clk 00:48:08]} {[%emt 00:03:48]} Rb7 {[%clk 01:12:37]} {[%emt
00:02:49]} 21. f3 {[%clk 00:45:54]} {[%emt 00:02:45]} h5 {[%clk 01:11:39]}
{[%emt 00:01:28]} 22. a4 {[%clk 00:45:02]} {[%emt 00:01:22]} Qd8 {[%clk
01:10:23]} {[%emt 00:01:45]} 23. Ndb5 {[%clk 00:27:29]} {[%emt 00:18:04]} Kh7
{[%clk 01:07:04]} {[%emt 00:03:48]} 24. Qd3 {[%clk 00:25:41]} {[%emt 00:02:19]}
Ne8 {[%clk 01:07:06]} {[%emt 00:00:27]} 25. Qd5 {[%clk 00:24:17]} {[%emt
00:01:54]} Rab8 {[%clk 01:05:36]} {[%emt 00:02:00]} 26. Qxf7 {[%clk 00:23:31]}
{[%emt 00:01:15]} Nf6 {[%clk 01:00:48]} {[%emt 00:05:18]} 27. Nd4 {[%clk
00:08:57]} {[%emt 00:15:02]} Qa5 {[%clk 00:59:02]} {[%emt 00:02:18]} 28. Nd5
{[%clk 00:05:36]} {[%emt 00:03:51]} Nxd5 {[%clk 00:55:33]} {[%emt 00:03:59]} 29.
exd5 {[%clk 00:06:03]} {[%emt 00:00:03]} Rf8 {[%clk 00:55:29]} {[%emt
00:00:33]} 30. Qxe7 {[%clk 00:05:53]} {[%emt 00:00:41]} Re8 {[%clk 00:55:47]}
{[%emt 00:00:12]} 31. Qg5 {[%clk 00:04:39]} {[%emt 00:01:43]} Re5 {[%clk
00:56:01]} {[%emt 00:00:16]} 32. Qf4 {[%clk 00:04:48]} {[%emt 00:00:21]} g5
{[%clk 00:56:15]} {[%emt 00:00:16]} 33. Qf7 {[%clk 00:03:55]} {[%emt 00:01:22]}
Rxe3 {[%clk 00:55:45]} {[%emt 00:01:00]} 34. Nf5 {[%clk 00:03:11]} {[%emt
00:01:14]} Bxf5 {[%clk 00:55:46]} {[%emt 00:00:29]} 35. Qxf5+ {[%clk 00:03:39]}
{[%emt 00:00:02]} Kh6 {[%clk 00:55:45]} {[%emt 00:00:31]} 36. f4 {[%clk
00:01:56]} {[%emt 00:02:13]} Qd8 {[%clk 00:55:44]} {[%emt 00:00:31]} 37. Rc6
{[%clk 00:02:06]} {[%emt 00:00:21]} Rg3 {[%clk 00:54:53]} {[%emt 00:01:21]} 38.
Re1 {[%clk 00:00:34]} {[%emt 00:02:02]} Re7 {[%clk 00:54:47]} {[%emt 00:00:35]}
39. Re6+ {[%clk 00:00:49]} {[%emt 00:00:16]} Rxe6 {[%clk 00:55:15]} {[%emt
00:00:02]} 40. Qxe6+ {[%clk 00:01:16]} {[%emt 00:00:03]} Kh7 {[%clk 00:55:17]}
{[%emt 00:00:28]} 41. Rxd6 {[%clk 00:01:02]} {[%emt 00:00:44]} Qf8 {[%clk
00:54:26]} {[%emt 00:01:21]} 42. Qg6+ {[%clk 00:01:15]} {[%emt 00:00:17]} Kg8
{[%clk 00:54:47]} {[%emt 00:00:09]} 43. f5 {[%clk 00:00:55]} {[%emt 00:00:51]}
Re3 {[%clk 00:52:36]} {[%emt 00:02:41]} 44. f6 {[%clk 00:00:49]} {[%emt
00:00:36]} Re1+ {[%clk 00:52:58]} {[%emt 00:00:07]} 45. Kf2 {[%clk 00:01:12]}
{[%emt 00:00:08]} Re7 {[%clk 00:53:22]} {[%emt 00:00:06]} 46. Rc6 {[%clk
00:00:33]} {[%emt 00:01:10]} Rf7 {[%clk 00:51:36]} {[%emt 00:02:15]} 47. Qxg5
{[%clk 00:00:53]} {[%emt 00:00:10]} h4 {[%clk 00:48:25]} {[%emt 00:03:40]} 48.
Kg1 {[%clk 00:01:00]} {[%emt 00:00:23]} Rxf6 {[%clk 00:48:40]} {[%emt
00:00:16]} 49. Rxf6 {[%clk 00:01:25]} {[%emt 00:00:05]} Qxf6 {[%clk 00:49:05]}
{[%emt 00:00:04]} 50. Qxf6 {[%clk 00:01:52]} {[%emt 00:00:03]} Bxf6 {[%clk
00:49:27]} {[%emt 00:00:07]} 51. Kf2 {[%clk 00:00:53]} {[%emt 00:01:29]} Kf7
{[%clk 00:49:50]} {[%emt 00:00:07]} 52. Ke3 {[%clk 00:00:57]} {[%emt 00:00:26]}
Be5 {[%clk 00:49:48]} {[%emt 00:00:33]} 53. Kd3 {[%clk 00:00:42]} {[%emt
00:00:45]} Ke7 {[%clk 00:50:07]} {[%emt 00:00:11]} 54. b4 {[%clk 00:00:57]}
{[%emt 00:00:15]} Kd6 {[%clk 00:50:05]} {[%emt 00:00:31]} 55. Kc4 {[%clk
00:01:18]} {[%emt 00:00:09]} Bg3 {[%clk 00:50:27]} {[%emt 00:00:07]} 56. Kd4
{[%clk 00:00:33]} {[%emt 00:01:16]} Kc7 {[%clk 00:50:19]} {[%emt 00:00:38]} 57.
a5 {[%clk 00:00:32]} {[%emt 00:00:31]} Kd6 {[%clk 00:50:34]} {[%emt 00:00:14]}
58. b5 {[%clk 00:00:43]} {[%emt 00:00:19]} Bf2+ {[%clk 00:50:44]} {[%emt
00:00:20]} 59. Ke4 {[%clk 00:01:07]} {[%emt 00:00:06]} Kc5 {[%clk 00:50:44]}
{[%emt 00:00:30]} 60. b6 {[%clk 00:00:33]} {[%emt 00:01:04]} Bg3 {[%emt
00:00:58]} 61. b7 {[%emt 00:00:01]} Kb5 {[%clk 00:51:06]} {[%emt 00:00:10]} 62.
Kf5 {[%clk 00:00:42]} {[%emt 00:00:19]} Ka6 {[%clk 00:50:10]} {[%emt 00:01:27]}
63. Ke6 {[%clk 00:00:33]} {[%emt 00:00:38]} Kxb7 {[%clk 00:50:36]} {[%emt
00:00:04]} 64. d6 {[%clk 00:00:42]} {[%emt 00:00:21]} Kc6 {[%clk 00:46:49]}
{[%emt 00:04:17]} 65. a6 {[%clk 00:01:00]} {[%emt 00:00:12]} Bf2 {[%clk
00:47:17]} {[%emt 00:00:02]} 66. d7 {[%clk 00:01:13]} {[%emt 00:00:17]} Kd5+
{[%emt 00:00:30]} 1-0